Workbook

Sheet MYP, MSS
B1: Lasse Saraluoto | E1: 2.2.2002 Lahti
B2: YKKÖSPESIS | E2: Runkosarja | L2: Runkosarja TOP-10 | Q2: Jatkosarjat | X2: SUOMENSARJA | AA2: Runkosarja | AH2: Runkosarja TOP-10 | AM2: Jatkosarjat
B3: Vuosi | C3: Sija | D3: Seura | E3: OTT | F3: KUN | G3: LÖI | H3: TOI | I3: KL | J3: KL-% | L3: LÖI | M3: TOI | N3: L+T | O3: KL | Q3: OTT | R3: KUN | S3: LÖI | T3: TOI | U3: KL | V3: KL-% | X3: Vuosi | Y3: Sija | Z3: Seura | AA3: OTT | AB3: KUN | AC3: LÖI | AD3: TOI | AE3: KL | AF3: KL-% | AH3: LÖI | AI3: TOI | AJ3: L+T | AK3: KL | AM3: OTT | AN3: KUN | AO3: LÖI | AP3: TOI | AQ3: KL | AR3: KL-%
X4: 2019 | Y4: 4. | Z4: KPL 2 | AA4: 14 | AB4: 3 | AC4: 19 | AD4: 10 | AE4: 65 | AF4: 58.0 % | AG4: 112 | AM4: 2 | AN4: 0 | AO4: 0 | AP4: 1 | AQ4: 6 | AR4: 54.5 % | AS4: 11
X5: 2020 | Y5: 3. | Z5: KPL 2 | AA5: 8 | AB5: 1 | AC5: 5 | AD5: 5 | AE5: 32 | AF5: 54.2 % | AG5: 59
X6: 2021 | Y6: 4. | Z6: LMV | AA6: 10 | AB6: 4 | AC6: 23 | AD6: 17 | AE6: 65 | AF6: 77.4 % | AG6: 84 | AH6: 8. | AJ6: 10. | AM6: 2 | AN6: 0 | AO6: 1 | AP6: 1 | AQ6: 8 | AR6: 72.7 % | AS6: 11
B7: 2022 | C7: 11. | D7: Tarmo | E7: 24 | F7: 2 | G7: 8 | H7: 8 | I7: 75 | J7: 54.4 % | K7: 138 | Q7: 3 | R7: 0 | S7: 0 | T7: 0 | U7: 11 | V7: 57.9 % | W7: 19
B8: 2023 | C8: 7. | D8: Kiri 2020 | E8: 21 | F8: 2 | G8: 10 | H8: 4 | I8: 53 | J8: 47.8 % | K8: 111
B9: YHTEENSÄ | E9: =SUM(E4:E8) -> 45 | F9: 4 | G9: 18 | H9: 12 | I9: 128 | J9: =PRODUCT(I9/K9) -> 51.4 % | K9: =SUM(K4:K8) -> 249 | Q9: =SUM(Q4:Q8) -> 3 | R9: =SUM(R4:R8) -> 0 | S9: =SUM(S4:S8) -> 0 | T9: =SUM(T4:T8) -> 0 | U9: =SUM(U4:U8) -> 11 | V9: =PRODUCT(U9/W9) -> 57.9 % | W9: =SUM(W4:W8) -> 19 | X9: YHTEENSÄ | AA9: =SUM(AA4:AA8) -> 32 | AB9: =SUM(AB4:AB8) -> 8 | AC9: 47 | AD9: 32 | AE9: 162 | AF9: =PRODUCT(AE9/AG9) -> 63.5 % | AG9: =SUM(AG4:AG8) -> 255 | AM9: =SUM(AM4:AM8) -> 4 | AN9: =SUM(AN4:AN8) -> 0 | AO9: =SUM(AO4:AO8) -> 1 | AP9: =SUM(AP4:AP8) -> 2 | AQ9: =SUM(AQ4:AQ8) -> 14 | AR9: =PRODUCT(AQ9/AS9) -> 63.6 % | AS9: =SUM(AS4:AS8) -> 22
B11: KAIKKI OTTELUT | E11: OTT | F11: KUN | G11: LÖI | H11: TOI | I11: KL | J11: KL-% | L11: ka/L | M11: ka/T | N11: ka/l+t | O11: ka/kl | R11: Seurat | T11: LMV = Lahden Mailaveikot (1929), kasvattajaseura
B12: SUPERPESIS | E12: 0 | F12: 0 | G12: 0 | H12: 0 | I12: 0 | J12: 0.0 % | K12: 0 | L12: 0.00 | M12: 0.00 | N12: 0.00 | O12: 0.00 | T12: KPL = Kouvolan Pallonlyöjät (1931)
B13: YKKÖSPESIS | E13: =PRODUCT(E9+Q9) -> 48 | F13: =PRODUCT(F9+R9) -> 4 | G13: =PRODUCT(G9+S9) -> 18 | H13: =PRODUCT(H9+T9) -> 12 | I13: =PRODUCT(I9+U9) -> 139 | J13: =PRODUCT(I13/K13) -> 51.9 % | K13: =PRODUCT(K9+W9) -> 268 | L13: =PRODUCT((F13+G13)/E13) -> 0.46 | M13: =PRODUCT(H13/E13) -> 0.25 | N13: =PRODUCT((F13+G13+H13)/E13) -> 0.71 | O13: =PRODUCT(I13/E13) -> 2.90 | T13: Tarmo = Ikaalisten Tarmo (1908)
B14: SUOMENSARJA | E14: =PRODUCT(AA9+AM9) -> 36 | F14: =PRODUCT(AB9+AN9) -> 8 | G14: =PRODUCT(AC9+AO9) -> 48 | H14: =PRODUCT(AD9+AP9) -> 34 | I14: =PRODUCT(AE9+AQ9) -> 176 | J14: =PRODUCT(I14/K14) -> 63.5 % | K14: =PRODUCT(AG9+AS9) -> 277 | L14: =PRODUCT((F14+G14)/E14) -> 1.56 | M14: =PRODUCT(H14/E14) -> 0.94 | N14: =PRODUCT((F14+G14+H14)/E14) -> 2.50 | O14: =PRODUCT(I14/E14) -> 4.89 | T14: Kiri 2020 = Jyväskylän Kiri 2020 (2020)
B15: YHTEENSÄ | E15: =SUM(E12:E14) -> 84 | F15: =SUM(F12:F14) -> 12 | G15: 66 | H15: 46 | I15: 315 | J15: =PRODUCT(I15/K15) -> 57.8 % | K15: =SUM(K12:K14) -> 545 | L15: =PRODUCT((F15+G15)/E15) -> 0.93 | M15: =PRODUCT(H15/E15) -> 0.55 | N15: =PRODUCT((F15+G15+H15)/E15) -> 1.48 | O15: =PRODUCT(I15/E15) -> 3.75
